bitfinex/quotes_SOLUSD_20241110
["timestamp","ask_amount","ask_price","bid_price","bid_amount"]
[1731197400717,24.95026016,199.09,198.96,8.72566072]
[1731197400929,24.95026016,199.09,198.95,15.6172]
[1731197401133,24.95026016,199.09,198.95,24.34286072]
[1731197402015,4.95026016,199.08,198.95,15.6172]
[1731197402216,20.0,199.06,198.95,15.6172]
[1731197402417,4.95026016,199.05,198.91,24.34286072]
[1731197402616,161.5,199.04,198.91,24.34286072]
[1731197403211,20.0,199.03,198.91,24.34286072]
[1731197404024,20.0,199.03,198.92,8.72566072]
[1731197404226,161.5,199.02,198.92,8.72566072]
[1731197404519,161.5,199.02,198.91,15.6172]
[1731197404725,161.5,199.02,198.94,8.72566072]
[1731197405117,161.5,199.02,198.95,8.72566072]
[1731197405437,161.5,199.04,198.95,8.72566072]
[1731197405817,161.5,199.04,198.96,8.72566072]
[1731197406013,161.5,199.04,198.97,8.72566072]
[1731197407039,161.5,199.08,198.97,8.72566072]
[1731197407214,161.5,199.07,198.97,8.72566072]
[1731197407613,161.5,199.07,198.96,8.72566072]
[1731197408019,161.5,199.07,198.93,0.1]
[1731197408226,4.95026016,199.09,198.95,8.72566072]
[1731197408227,161.5,199.06,198.95,8.72566072]
[1731197410546,161.5,199.06,198.92,23.876884]
[1731197410758,161.5,199.06,198.94,8.72566072]
[1731197411413,161.5,199.06,198.95,8.72566072]
[1731197413131,161.5,199.06,198.96,8.72566072]
[1731197413344,161.5,199.05,198.96,8.72566072]
[1731197415520,24.95026016,199.09,198.92,23.876884]
[1731197415715,29.97326016,199.09,198.92,8.72566072]
[1731197415917,35.67955764,199.09,198.92,8.72566072]
[1731197416114,35.67955764,199.09,198.91,15.6172]
[1731197416334,35.67955764,199.09,198.91,24.34286072]
[1731197417041,20.0,199.07,198.91,15.6172]
[1731197417334,20.0,199.05,198.88,8.72566072]
[1731197417539,4.95026016,199.04,198.88,8.72566072]
[1731197418929,6.3172,199.03,198.88,8.72566072]
[1731197419143,24.95026016,199.02,198.87,8.72566072]
[1731197419919,24.95026016,199.02,198.88,8.72566072]
[1731197421726,24.95026016,199.02,198.89,8.72566072]
[1731197421928,24.95026016,199.02,198.9,8.72566072]
[1731197422444,161.5,199.01,198.9,8.72566072]
[1731197422742,161.5,199.0,198.9,8.72566072]
[1731197422911,161.5,199.0,198.87,23.776884]
[1731197423118,161.5,199.0,198.89,8.72566072]
[1731197424539,161.5,199.0,198.9,8.72566072]
[1731197425454,161.5,199.0,198.92,8.72566072]
[1731197425646,161.5,199.0,198.93,8.72566072]
[1731197425846,161.5,199.0,198.92,8.72566072]
[1731197426460,161.5,199.0,198.93,8.72566072]
[1731197426636,161.5,199.0,198.92,8.72566072]
[1731197427153,6.3172,199.03,198.92,8.72566072]
[1731197427543,6.3172,199.03,198.96,8.72566072]
[1731197427852,6.3172,199.03,198.88,0.1]
[1731197428051,6.3172,199.03,198.91,8.72566072]
[1731197428654,6.3172,199.03,198.87,23.976884]
[1731197428655,6.3172,199.03,198.93,8.72566072]
[1731197428845,6.3172,199.03,198.94,8.72566072]
[1731197429564,6.3172,199.03,198.93,8.72566072]
[1731197431563,6.3172,199.03,198.91,8.72566072]
[1731197431944,20.0,199.02,198.86,16.1197]
[1731197432146,20.0,198.99,198.86,24.84536072]
[1731197432452,4.90688547,198.98,198.86,16.1197]
[1731197432651,4.90688547,198.98,198.84,13.75266072]
[1731197433050,4.90688547,198.98,198.85,8.72566072]
[1731197434268,4.90688547,198.98,198.81,16.1197]
[1731197434269,20.0,198.96,198.81,16.1197]
[1731197434568,20.0,198.94,198.8,8.72566072]
[1731197434751,24.90688547,198.94,198.8,8.72566072]
[1731197435474,24.90688547,198.94,198.79,8.72566072]
[1731197436240,24.90688547,198.94,198.8,8.72566072]
[1731197436861,24.90688547,198.94,198.81,8.72566072]
[1731197438374,24.90688547,198.94,198.83,8.72566072]
[1731197438675,15.4075,198.95,198.86,8.72566072]
[1731197438968,15.4075,198.95,198.87,8.72566072]
[1731197439766,6.3172,198.97,198.9,8.72566072]
[1731197439970,15.4579,199.0,198.85,16.3706]
[1731197439971,15.4579,199.0,198.93,8.72566072]
[1731197440268,6.3841,199.02,198.95,8.72566072]
[1731197440643,6.3841,199.02,198.94,8.72566072]
[1731197440847,6.3841,199.02,198.88,0.1]
[1731197441053,6.3841,199.02,198.87,0.1]
[1731197441054,6.3841,199.02,198.93,8.72566072]
[1731197441848,6.3841,199.02,198.92,8.72566072]
[1731197442053,6.3841,199.02,198.91,8.72566072]
[1731197442762,6.3841,199.02,198.85,16.4706]
[1731197442763,20.0,199.01,198.85,16.3706]
[1731197442969,24.90688547,199.01,198.88,8.72566072]
[1731197444372,24.90688547,199.01,198.89,8.72566072]
[1731197444567,4.90688547,199.01,198.92,8.72566072]
[1731197444777,4.90688547,199.01,198.94,8.72566072]
[1731197445069,6.3841,199.02,198.94,8.72566072]
[1731197446353,6.3841,199.02,198.95,8.72566072]
[1731197446772,6.3841,199.02,198.94,8.72566072]
[1731197447254,6.3841,199.02,198.95,8.72566072]
[1731197447449,6.3841,199.02,198.95,13.63490889]
[1731197447958,6.3841,199.02,198.94,13.63490889]
[1731197448266,6.3841,199.02,198.95,13.63490889]
[1731197448476,6.3841,199.02,198.96,13.63490889]
[1731197448781,6.3841,199.02,198.95,13.63490889]
[1731197448982,6.3841,199.02,198.94,13.63490889]
[1731197450062,6.3841,199.02,198.91,13.63490889]
[1731197451682,6.3841,199.02,198.9,13.63490889]
[1731197451971,161.5,199.01,198.9,13.63490889]
[1731197454854,161.5,199.0,198.9,13.63490889]
[1731197456775,161.5,199.0,198.89,13.63490889]
[1731197456954,161.5,199.0,198.85,16.3706]
[1731197456955,161.5,199.0,198.88,13.63490889]
[1731197457282,161.5,199.0,198.87,13.63490889]
[1731197457576,161.5,199.0,198.88,13.63490889]
[1731197458363,161.5,199.0,198.87,13.63490889]
[1731197458566,26.4578,198.98,198.81,0.1]
[1731197458863,161.5,198.97,198.86,13.63490889]
[1731197461563,181.5,198.96,198.82,13.63490889]
[1731197461862,161.5,198.95,198.82,13.63490889]
[1731197462668,161.5,198.95,198.81,13.63490889]
[1731197462873,20.0,198.94,198.81,13.63490889]
[1731197463069,161.5,198.93,198.81,13.63490889]
[1731197463664,161.5,198.93,198.82,13.63490889]
[1731197464482,161.5,198.93,198.81,13.63490889]
[1731197464681,22.8998,198.92,198.79,13.63490889]
[1731197464873,184.3998,198.92,198.79,13.63490889]
[1731197465070,184.3998,198.92,198.8,13.63490889]
[1731197466878,184.3998,198.92,198.81,13.63490889]
[1731197467292,184.3998,198.92,198.81,8.73846106]
[1731197467596,184.3998,198.92,198.83,8.73846106]
[1731197467882,22.8998,198.92,198.83,8.73846106]
[1731197468184,184.3998,198.92,198.86,8.73846106]
[1731197468391,184.3998,198.92,198.85,8.73846106]
[1731197469287,184.3998,198.92,198.81,23.776884]
[1731197469489,184.3998,198.92,198.85,8.73846106]
[1731197469687,184.3998,198.92,198.81,23.776884]
[1731197469893,184.3998,198.92,198.83,8.73846106]
[1731197470189,184.3998,198.92,198.76,5.227]
[1731197470190,184.3998,198.92,198.84,8.73846106]
[1731197470774,184.3998,198.92,198.76,23.776884]
[1731197470973,161.5,198.91,198.78,8.73846106]
[1731197471175,181.5,198.9,198.77,8.73846106]
[1731197471497,6.4578,198.87,198.75,8.73846106]
[1731197471783,161.5,198.86,198.75,8.73846106]
[1731197471992,161.5,198.86,198.74,8.73846106]
[1731197472174,161.5,198.86,198.75,8.73846106]
[1731197472783,16.442,198.85,198.75,8.73846106]
[1731197473390,16.442,198.85,198.75,13.66224729]
[1731197473870,16.442,198.85,198.74,13.66224729]
[1731197474069,161.5,198.84,198.74,13.66224729]
[1731197474775,161.5,198.84,198.75,13.66224729]
[1731197474981,161.5,198.84,198.76,13.66224729]
[1731197477794,161.5,198.84,198.79,13.66224729]
[1731197477990,16.442,198.85,198.71,23.976884]
[1731197477991,16.442,198.85,198.8,13.66224729]
[1731197479079,16.442,198.85,198.78,13.66224729]
[1731197479483,16.442,198.85,198.79,13.66224729]
[1731197480302,16.442,198.85,198.81,13.66224729]
[1731197480477,176.8089,198.91,198.84,13.66224729]
[1731197480677,161.5,198.9,198.86,13.66224729]
[1731197481398,6.2609,198.92,198.89,13.66224729]
[1731197481582,15.3089,198.96,198.89,13.66224729]
[1731197482297,15.3089,198.96,198.91,13.66224729]
[1731197483399,15.3089,198.96,198.9,13.66224729]
[1731197483696,15.3089,198.96,198.89,13.66224729]
[1731197483995,15.3089,198.96,198.88,13.66224729]
[1731197484783,15.3089,198.96,198.89,13.66224729]
[1731197485577,15.3089,198.96,198.9,13.66224729]
[1731197486591,15.3089,198.96,198.89,13.66224729]
[1731197487105,15.3089,198.96,198.81,23.876884]
[1731197487301,15.3089,198.96,198.88,13.66224729]
[1731197488290,15.3089,198.96,198.89,13.66224729]
[1731197491487,15.3089,198.96,198.9,13.66224729]
[1731197494001,161.5,198.99,198.92,13.66224729]
[1731197494198,161.55,199.0,198.93,13.66224729]
[1731197494996,0.05,199.0,198.99,37.43913129]
[1731197495398,0.05,199.0,198.99,8.71978895]
[1731197496613,0.05,199.0,198.92,23.776884]
[1731197496816,0.05,199.0,198.97,8.71978895]
[1731197497320,0.05,199.0,198.99,13.62856287]
[1731197499420,0.05,199.0,198.99,19.56856287]
[1731197501103,0.05,199.0,198.99,56.97400974]
[1731197501310,0.05,199.0,198.99,43.34544687]
[1731197501608,0.05,199.0,198.99,56.97400974]
[1731197502111,0.05,199.0,198.99,43.34544687]
[1731197502706,0.05,199.0,198.99,56.97400974]
[1731197504618,0.05,199.0,198.99,19.56856287]
[1731197504809,0.05,199.0,198.99,43.34544687]
[1731197505125,0.05,199.0,198.99,56.97400974]
[1731197505424,0.05,199.0,198.99,43.34544687]
[1731197506007,0.05,199.0,198.99,56.97400974]
[1731197509305,0.05,199.0,198.99,51.03400974]
[1731197510004,0.05,199.0,198.99,37.40544687]
[1731197510215,6.3576,199.11,199.0,39.493284]
[1731197510413,6.3576,199.11,199.08,13.62856287]
[1731197510611,6.3576,199.11,199.0,53.12184687]
[1731197510612,6.3576,199.11,199.07,13.62856287]
[1731197511211,161.5,199.15,199.08,13.62856287]
[1731197511627,6.3576,199.14,198.91,19.568563]
[1731197511803,20.0,199.06,198.9,13.62856287]
[1731197512006,6.3576,199.07,198.89,13.62856287]
[1731197512007,6.3576,199.03,198.89,13.62856287]
[1731197512216,20.0,199.02,198.91,13.62856287]
[1731197512412,6.3576,199.03,198.92,13.62856287]
[1731197512617,6.3576,199.03,198.94,13.62856287]
[1731197513128,6.3576,199.03,198.86,0.2]
[1731197513129,6.3576,199.03,198.95,13.62856287]
[1731197513534,6.3576,199.03,198.94,13.62856287]
[1731197516539,6.3576,199.03,198.88,0.1]
[1731197516716,6.3576,199.03,198.98,13.62856287]
[1731197518616,6.3576,199.03,198.99,13.62856287]
[1731197519032,6.3576,199.03,199.0,13.62856287]
[1731197519337,161.5,199.04,199.01,13.62856287]
[1731197519535,161.5,199.04,199.0,13.62856287]
[1731197519833,161.5,199.04,199.01,13.62856287]
[1731197520038,16.4122,199.05,198.91,23.776884]
[1731197520242,161.5,199.04,198.9,15.544]
[1731197520421,161.5,199.04,198.93,13.62856287]
[1731197520617,161.5,199.04,198.95,13.62856287]
[1731197520841,161.5,199.03,198.95,13.62856287]
[1731197521947,161.5,199.03,198.97,13.62856287]
[1731197523220,161.5,199.03,198.98,13.62856287]
[1731197524036,161.5,199.03,198.96,13.62856287]
[1731197524319,161.5,199.03,198.91,23.776884]
[1731197524631,161.5,199.02,198.94,13.62856287]
[1731197525629,161.5,199.01,198.95,13.62856287]
[1731197525944,161.5,199.0,198.95,13.62856287]
[1731197526951,161.5,199.04,198.97,13.62856287]
[1731197527239,161.5,199.04,199.0,13.62856287]
[1731197527437,177.9122,199.05,198.99,13.62856287]
[1731197528431,177.9122,199.05,198.96,13.62856287]
[1731197528632,161.5,199.04,198.95,13.62856287]
[1731197529319,161.5,199.04,198.96,13.62856287]
[1731197529519,161.5,199.04,198.97,13.62856287]
[1731197529717,161.5,199.04,198.9,29.17256287]
[1731197529718,20.0,199.03,198.94,13.62856287]
[1731197529924,6.2026,199.02,198.92,13.62856287]
[1731197530118,161.5,199.01,198.92,13.62856287]
[1731197530533,161.5,199.01,198.85,15.544]
[1731197530738,161.5,199.0,198.92,13.62856287]
[1731197530941,161.5,198.99,198.92,13.62856287]
[1731197531140,161.5,198.99,198.96,13.62856287]
[1731197531445,161.5,198.98,198.86,0.1]
[1731197531634,6.2026,199.02,198.93,13.62856287]
[1731197531835,161.5,199.01,198.93,13.62856287]
[1731197532030,161.5,199.01,198.94,13.62856287]
[1731197533829,161.5,199.01,198.86,23.776884]
[1731197534141,20.0,198.99,198.9,13.62856287]
[1731197534445,161.5,198.98,198.91,13.62856287]
[1731197534943,161.5,198.98,198.85,15.544]
[1731197535147,161.5,198.97,198.91,13.62856287]
[1731197535337,161.5,198.96,198.91,13.62856287]
[1731197535538,161.5,198.96,198.95,13.62856287]
[1731197535850,161.5,199.01,198.96,23.776884]
[1731197536029,6.2902,199.09,199.01,23.776884]
[1731197536224,167.7902,199.09,199.01,23.776884]
[1731197536435,167.7902,199.09,199.02,13.62856287]
[1731197536751,167.7902,199.09,199.01,23.776884]
[1731197536926,20.093108,199.18,199.06,13.62856287]
[1731197537242,16.225,199.15,199.01,23.776884]
[1731197537434,161.5,199.14,199.01,23.776884]
[1731197537744,166.79011679,199.14,199.0,13.62856287]
[1731197538063,20.0,199.11,198.98,13.62856287]
[1731197538274,20.0,199.09,199.0,13.62856287]
[1731197538562,161.5,199.11,199.02,13.62856287]
[1731197538860,161.5,199.1,199.02,13.62856287]
[1731197539045,6.2902,199.12,199.05,13.62856287]
[1731197539247,6.2902,199.12,199.06,13.62856287]
[1731197540842,6.2902,199.12,199.07,13.62856287]
[1731197541055,161.5,199.13,199.11,13.62856287]
[1731197541254,16.125,199.15,199.02,23.776884]
[1731197541545,16.125,199.15,199.1,13.62856287]
[1731197542266,6.2902,199.16,199.04,23.776884]
[1731197542453,6.2902,199.16,199.09,13.62856287]
[1731197542768,167.7902,199.16,199.08,13.62856287]
[1731197542974,167.7902,199.16,199.09,13.62856287]
[1731197543450,167.7902,199.16,199.08,13.62856287]
[1731197543650,167.7902,199.16,199.09,13.62856287]
[1731197544043,167.7902,199.16,199.08,13.62856287]
[1731197544451,20.0,199.15,199.06,13.62856287]
[1731197544667,161.5,199.14,199.08,13.62856287]
[1731197546273,6.2902,199.16,199.1,13.62856287]
[1731197548567,6.2902,199.16,199.09,13.62856287]
[1731197550056,6.2902,199.16,199.1,13.62856287]
[1731197550458,6.2902,199.16,199.09,13.62856287]
[1731197551563,6.2902,199.16,199.1,13.62856287]
[1731197551759,6.2902,199.16,199.09,13.62856287]
[1731197551962,6.2902,199.16,199.08,13.62856287]
[1731197552267,20.0,199.15,199.06,13.62856287]
[1731197552659,161.5,199.14,199.06,13.62856287]
[1731197554457,161.5,199.14,199.05,13.62856287]
[1731197554671,161.5,199.13,199.04,37.40544687]
[1731197555062,161.5,199.13,199.05,13.62856287]
[1731197555876,161.5,199.13,199.06,13.62856287]
[1731197556061,161.5,199.13,199.05,13.62856287]
[1731197556875,161.5,199.13,199.04,37.40544687]
[1731197557455,181.5,199.12,199.01,13.62856287]
[1731197557663,20.0,199.1,199.0,13.62856287]
[1731197557862,20.0,199.1,199.01,13.62856287]
[1731197561383,20.0,199.1,199.0,13.62856287]
[1731197561562,161.5,199.09,199.0,13.62856287]
[1731197561885,6.2723,199.07,198.97,13.62856287]
[1731197562072,161.5,199.06,198.97,13.62856287]
[1731197562263,161.5,199.06,198.98,13.62856287]
[1731197562672,161.5,199.06,198.99,13.62856287]
[1731197567584,161.5,199.05,198.99,13.62856287]
[1731197568174,161.5,199.05,198.98,13.62856287]
[1731197571587,161.5,199.05,199.0,13.62856287]
[1731197571978,161.5,199.05,198.99,13.62856287]
[1731197572286,161.5,199.05,198.98,13.62856287]
[1731197573276,161.5,199.04,198.99,13.62856287]
[1731197573473,161.5,199.04,199.03,13.62856287]
[1731197573680,161.5,199.09,199.03,13.62856287]
[1731197573883,6.2723,199.12,199.04,13.62856287]
[1731197574583,6.2723,199.12,199.03,13.62856287]
[1731197574779,6.2723,199.12,199.04,23.776884]
[1731197575179,6.2723,199.12,199.02,23.776884]
[1731197576075,6.2723,199.12,199.04,13.62856287]
[1731197576485,6.2723,199.12,199.05,13.62856287]
[1731197576693,20.0,199.13,199.05,13.62856287]
[1731197576873,181.5,199.13,199.05,13.62856287]
[1731197578995,181.5,199.13,199.03,13.62856287]
[1731197579192,181.5,199.13,199.04,23.776884]
[1731197581275,181.5,199.13,199.02,13.62856287]
[1731197581598,181.5,199.13,199.02,23.776884]
[1731197582189,161.5,199.12,199.02,23.776884]
[1731197582395,20.0,199.11,199.0,23.776884]
[1731197582577,20.0,199.09,198.98,13.62856287]
[1731197582894,161.5,199.08,198.98,13.62856287]
[1731197583580,161.5,199.08,198.96,15.856]
[1731197583895,161.5,199.07,198.98,13.62856287]
[1731197584278,161.5,199.06,199.01,13.62856287]
[1731197584485,161.5,199.08,199.01,13.62856287]
[1731197585397,161.5,199.08,199.0,13.62856287]
[1731197587581,161.5,199.08,198.99,13.62856287]
[1731197588187,161.5,199.07,198.99,13.62856287]
[1731197590207,161.5,199.07,199.0,13.62856287]
[1731197591084,161.5,199.07,199.03,13.62856287]
[1731197591897,161.5,199.07,198.97,23.776884]
[1731197592096,161.5,199.06,199.02,13.62856287]
[1731197592291,20.0,199.11,199.03,13.62856287]
[1731197592484,161.5,199.1,199.03,13.62856287]
[1731197592996,161.5,199.1,199.04,13.62856287]
[1731197593603,161.5,199.1,198.97,23.776884]
[1731197593787,161.5,199.09,199.03,13.62856287]
[1731197593995,161.5,199.12,199.04,13.62856287]
[1731197595388,161.5,199.12,199.04,8.71771742]
[1731197596601,161.5,199.12,199.05,23.776884]
[1731197597107,161.5,199.11,199.05,23.776884]
[1731197599823,161.5,199.11,199.05,32.49460142]
[1731197602885,161.5,199.12,199.05,32.49460142]
[1731197603314,161.5,199.12,199.08,8.71771742]
[1731197603498,161.5,199.18,199.09,8.71771742]
[1731197603811,6.5422,199.19,199.09,8.71771742]
[1731197603812,161.5,199.17,199.09,8.71771742]
[1731197608492,161.5,199.17,199.1,8.71771742]
[1731197608995,161.5,199.16,199.12,8.71771742]
[1731197609196,161.5,199.23,199.14,8.71771742]
[1731197609394,161.5,199.22,199.16,8.71771742]
[1731197610013,161.5,199.21,199.18,8.71771742]
[1731197610218,161.5,199.31,199.21,23.776884]
[1731197610420,161.5,199.31,199.22,8.71771742]
[1731197610593,161.5,199.3,199.22,8.71771742]
[1731197611003,161.5,199.3,199.24,8.71771742]
[1731197611199,161.5,199.3,199.26,8.71771742]
[1731197611399,161.5,199.34,199.26,13.59140597]
[1731197611618,161.5,199.33,199.26,13.59140597]
[1731197611998,161.5,199.33,199.25,13.59140597]
[1731197612294,161.5,199.33,199.26,13.59140597]
[1731197613323,20.0,199.37,199.27,37.36828997]
[1731197613510,20.0,199.37,199.26,13.59140597]
[1731197616806,20.0,199.37,199.27,23.776884]
[1731197617822,161.5,199.36,199.27,23.776884]
[1731197618327,161.5,199.36,199.27,37.36828997]
[1731197619416,161.5,199.36,199.28,13.59140597]
[1731197620221,161.5,199.36,199.29,23.776884]
[1731197621521,161.5,199.36,199.28,13.59140597]
[1731197621522,161.5,199.36,199.28,23.776884]
[1731197622312,161.5,199.36,199.26,23.776884]
[1731197623828,161.5,199.35,199.26,23.776884]
[1731197624026,161.5,199.35,199.25,23.776884]
[1731197626709,161.5,199.35,199.25,37.36828997]
[1731197628028,161.5,199.35,199.26,13.59140597]
[1731197628931,161.5,199.35,199.27,13.59140597]
[1731197629613,161.5,199.34,199.27,13.59140597]
[1731197630133,161.5,199.34,199.26,13.59140597]
[1731197631344,161.5,199.34,199.26,8.69871953]
[1731197634117,161.5,199.34,199.27,8.69871953]
[1731197634425,161.5,199.34,199.26,8.69871953]
[1731197635122,161.5,199.34,199.27,8.69871953]
[1731197635336,161.5,199.34,199.26,8.69871953]
[1731197635526,161.5,199.33,199.26,8.69871953]
[1731197638332,161.5,199.33,199.27,8.69871953]
[1731197639446,161.5,199.33,199.24,23.776884]
[1731197639447,161.5,199.33,199.31,8.69871953]
[1731197639741,161.5,199.38,199.32,8.69871953]
[1731197639920,161.5,199.37,199.33,8.69871953]
[1731197640243,161.5,199.37,199.32,8.69871953]
[1731197640545,161.5,199.37,199.31,8.69871953]
[1731197640837,161.5,199.37,199.32,8.69871953]
[1731197641438,161.5,199.37,199.31,8.69871953]
[1731197642031,161.5,199.37,199.32,8.69871953]
[1731197642231,161.5,199.37,199.31,8.69871953]
[1731197642433,161.5,199.37,199.3,8.69871953]
[1731197643024,161.5,199.37,199.26,23.776884]
[1731197643227,161.5,199.36,199.29,8.69871953]
[1731197643921,161.5,199.35,199.25,19.07]
[1731197644227,161.5,199.35,199.28,8.69871953]
[1731197645137,161.5,199.35,199.29,8.69871953]
[1731197645733,161.5,199.35,199.31,8.69871953]
[1731197645928,161.5,199.38,199.31,8.69871953]
[1731197646136,161.5,199.38,199.3,8.69871953]
[1731197646853,161.0,199.38,199.29,8.69871953]
[1731197647040,20.0,199.37,199.29,8.69871953]
[1731197647625,20.0,199.37,199.28,8.69871953]
[1731197649044,161.0,199.38,199.31,8.69871953]
[1731197649237,161.0,199.37,199.33,8.69871953]
[1731197649847,161.0,199.37,199.32,8.69871953]
[1731197651228,161.0,199.37,199.33,8.69871953]
[1731197651928,161.0,199.37,199.32,8.69871953]
[1731197652345,161.0,199.37,199.25,23.776884]
[1731197652532,161.0,199.38,199.31,8.69871953]
[1731197652851,161.0,199.37,199.3,8.69871953]
[1731197653232,161.0,199.37,199.31,8.69871953]
[1731197653633,161.0,199.37,199.32,8.69871953]
[1731197653842,161.0,199.37,199.33,8.69871953]
[1731197654049,161.0,199.37,199.36,8.69871953]
[1731197654358,0.590018,199.39,199.36,8.69871953]
[1731197656150,0.590018,199.39,199.35,8.69871953]
[1731197656451,0.590018,199.39,199.34,8.69871953]
[1731197657228,0.590018,199.39,199.33,8.69871953]
[1731197657552,0.590018,199.39,199.34,8.69871953]
[1731197659455,0.590018,199.39,199.35,8.69871953]
[1731197660554,0.590018,199.39,199.36,8.69871953]
[1731197661554,0.590018,199.39,199.37,8.69871953]
[1731197663843,0.590018,199.39,199.36,8.69871953]
[1731197664152,0.590018,199.39,199.35,8.69871953]
[1731197664560,0.590018,199.39,199.33,23.776884]
[1731197664762,0.590018,199.39,199.34,8.69871953]
[1731197665259,0.590018,199.39,199.33,8.69871953]
[1731197665934,0.590018,199.39,199.35,8.69871953]
[1731197666140,161.0,199.38,199.29,8.69871953]
[1731197666359,161.0,199.37,199.29,8.69871953]
[1731197666543,161.0,199.37,199.28,8.69871953]
[1731197667058,161.0,199.37,199.29,8.69871953]
[1731197667744,161.0,199.37,199.26,15.4557]
[1731197667953,161.0,199.37,199.28,8.69871953]
[1731197668465,0.590018,199.39,199.28,8.69871953]
[1731197670359,0.590018,199.39,199.3,8.69871953]
[1731197670549,0.590018,199.39,199.31,8.69871953]
[1731197671261,0.590018,199.39,199.34,8.69871953]
[1731197671466,161.5,199.38,199.34,8.69871953]
[1731197671757,161.5,199.38,199.35,8.69871953]
[1731197671961,161.5,199.38,199.33,8.69871953]
[1731197672463,161.5,199.38,199.34,8.69871953]
[1731197672846,0.590018,199.39,199.34,8.69871953]
[1731197673049,0.590018,199.39,199.35,8.69871953]
[1731197673757,0.590018,199.39,199.34,8.69871953]
[1731197675942,0.590018,199.39,199.35,8.69871953]
[1731197680462,0.590018,199.39,199.3,34.79487812]
[1731197680463,0.590018,199.39,199.36,8.69871953]
[1731197682375,0.590018,199.39,199.37,8.69871953]
[1731197682551,0.590018,199.39,199.28,2.32405572]
[1731197682552,0.590018,199.39,199.35,23.776884]
[1731197682875,0.590018,199.39,199.38,8.69871953]
[1731197683360,0.590018,199.39,199.35,23.776884]
[1731197683863,0.590018,199.39,199.36,8.69871953]
[1731197684471,0.590018,199.39,199.34,15.0538]
[1731197684672,0.590018,199.39,199.35,8.69871953]
[1731197685558,0.590018,199.39,199.34,15.0538]
[1731197685763,160.7,199.38,199.32,8.69871953]
[1731197686270,160.7,199.38,199.33,8.69871953]
[1731197688958,160.7,199.37,199.33,8.69871953]
[1731197690559,160.7,199.37,199.34,8.69871953]
[1731197692763,160.7,199.37,199.3,23.776884]
[1731197692958,160.7,199.38,199.32,8.69871953]
[1731197693182,160.7,199.38,199.33,8.69871953]
[1731197693756,160.7,199.38,199.32,8.69871953]
[1731197694984,160.7,199.38,199.26,6.0682]
[1731197694985,160.7,199.37,199.3,8.69871953]
[1731197696379,160.7,199.37,199.31,8.69871953]
[1731197696680,160.7,199.36,199.25,23.776884]
[1731197696862,160.7,199.35,199.3,8.69871953]
[1731197697063,160.7,199.34,199.3,8.69871953]
[1731197697259,160.7,199.34,199.26,5.021]
[1731197697260,160.7,199.34,199.32,8.69871953]
[1731197698580,160.7,199.34,199.33,8.69871953]
[1731197700481,160.7,199.34,199.32,8.69871953]
[1731197700775,160.7,199.38,199.32,8.69871953]
[1731197702285,160.7,199.38,199.33,8.69871953]
[1731197702964,160.7,199.38,199.35,8.69871953]
[1731197703168,160.7,199.37,199.35,8.69871953]
[1731197703370,160.7,199.37,199.34,8.69871953]
[1731197704383,0.590018,199.39,199.37,23.776884]
[1731197704596,160.7,199.51,199.39,23.776884]
[1731197704775,15.0107,199.53,199.45,8.69871953]
[1731197705088,15.0107,199.53,199.4,34.79487812]
[1731197705089,160.7,199.53,199.47,8.69871953]
[1731197705880,160.7,199.53,199.44,8.69871953]
[1731197706488,20.0,199.52,199.37,32.62353123]
[1731197706672,160.7,199.51,199.38,8.69871953]
[1731197706875,195.7107,199.5,199.37,16.4731]
[1731197707074,195.7107,199.5,199.38,8.69871953]
[1731197707287,195.7107,199.5,199.39,8.69871953]
[1731197707784,20.0,199.48,199.37,16.4731]